fUSD/lending_fUSD_20250609
["ID","MTS","AMOUNT","RATE_DAILY","PERIOD"]
[365097217,1749463850710,-603.28,0.00038356,120]
[365097218,1749463850720,-603.28,0.00038356,120]
[365097219,1749463850729,-603.28,0.00038356,120]
[365097220,1749463850738,-603.28,0.00038356,120]
[365097221,1749463850749,-603.28,0.00038356,120]
[365097222,1749463850758,-603.28,0.00038356,120]
[365097223,1749463850767,-603.28,0.00038356,120]
[365097224,1749463850777,-603.28,0.00038356,120]
[365097225,1749463850787,-603.28,0.00038356,120]
[365097226,1749463850800,-603.28,0.00038356,120]
[365097227,1749463850809,-603.28,0.00038356,120]
[365097228,1749463850818,-603.28,0.00038356,120]
[365097229,1749463850828,-603.28,0.00038356,120]
[365097230,1749463850837,-603.28,0.00038356,120]
[365097231,1749463850846,-603.28,0.00038356,120]
[365097232,1749463850855,-603.28,0.00038356,120]
[365097233,1749463850864,-603.28,0.00038356,120]
[365097234,1749463850873,-603.44509443,0.00038356,120]
[365097235,1749463850882,-395.80587763,0.00038356,120]
[365097236,1749463850891,-574.06,0.00038356,19]
[365097237,1749463850901,-1000.0,0.00038356,7]
[365097238,1749463850910,-1000.0,0.00038356,7]
[365097239,1749463850919,-1000.0,0.00038356,7]
[365097240,1749463850928,-1000.0,0.00038356,7]
[365097241,1749463850938,-1000.0,0.00038356,7]
[365097242,1749463850947,-1000.0,0.00038356,7]
[365097243,1749463850956,-1000.0,0.00038356,7]
[365097244,1749463850965,-1000.0,0.00038356,7]
[365097245,1749463850974,-1000.0,0.00038356,7]
[365097246,1749463850983,-1000.0,0.00038356,7]
[365097247,1749463850992,-1000.0,0.00038356,7]
[365097248,1749463851001,-1000.0,0.00038356,7]
[365097249,1749463851010,-1000.0,0.00038356,7]
[365097250,1749463851019,-1000.0,0.00038356,7]
[365097251,1749463851028,-1000.0,0.00038356,7]
[365097252,1749463851038,-1000.0,0.00038356,7]
[365097253,1749463851049,-1000.0,0.00038356,7]
[365097254,1749463851058,-1000.0,0.00038356,7]
[365097255,1749463851068,-1000.0,0.00038356,7]
[365097256,1749463851078,-1141.55569215,0.00038356,7]
[365097257,1749463851087,-150.0,0.0003839,7]
[365097258,1749463851096,-151.0,0.00038399,33]
[365097259,1749463851106,-3608.9822763,0.000384,33]
[365097260,1749463851115,-722.0,0.000384,2]
[365097261,1749463851124,-447.93,0.0003844,2]
[365097262,1749463851133,-500.0,0.00038442,60]
[365097263,1749463851143,-1854.060914,0.00038498,120]
[365097264,1749463851153,-500.0,0.00038499,40]
[365097265,1749463851162,-151.0,0.00038499,40]
[365097266,1749463851171,-151.0,0.00038499,40]
[365097267,1749463851181,-500.0,0.00038499,40]
[365097268,1749463851190,-500.0,0.00038499,40]
[365097269,1749463851199,-500.0,0.00038499,40]
[365097270,1749463851244,-17667.06,0.000385,14]
[365097271,1749463851254,-1400.0,0.000385,14]
[365097272,1749463851263,-1101.59,0.00038526,2]
[365097273,1749463851273,-150.0,0.00038536,120]
[365097274,1749463851284,-575.83826078,0.0003856,120]
[365097275,1749463851299,-500.0,0.00038589,48]
[365097276,1749463851308,-151.0,0.00038589,48]
[365097277,1749463851318,-151.0,0.00038589,48]
[365097278,1749463851329,-500.0,0.00038589,48]
[365097279,1749463851337,-151.0,0.00038589,48]
[365097280,1749463851345,-500.0,0.00038589,48]
[365097281,1749463851355,-500.0,0.00038589,48]
[365097282,1749463851364,-300.0,0.00038589,48]
[365097283,1749463851374,-346.28,0.000386,14]
[365097284,1749463851384,-1400.0,0.000386,14]
[365097285,1749463851393,-10263.88,0.000386,120]
[365097286,1749463851401,-10263.88,0.000386,120]
[365097287,1749463851409,-10263.88,0.000386,120]
[365097288,1749463851418,-10263.879,0.000386,120]
[365097289,1749463851426,-10263.879,0.000386,120]
[365097290,1749463851435,-150.0,0.000386,7]
[365097291,1749463851443,-5357.32872533,0.00038604,10]
[365097292,1749463851451,-5357.32872524,0.00038604,10]
[365097293,1749463851461,-5357.32872524,0.00038604,10]
[365097294,1749463851469,-5357.32872524,0.00038604,10]
[365097295,1749463851478,-5357.32872524,0.00038604,10]
[365097296,1749463851486,-5357.32872524,0.00038604,10]
[365097297,1749463851494,-5357.32872524,0.00038604,10]
[365097298,1749463851503,-5357.32872524,0.00038604,10]
[365097299,1749463851512,-5357.32872524,0.00038604,10]
[365097300,1749463851521,-5357.32872524,0.00038604,10]
[365097301,1749463851529,-5357.32872524,0.00038604,10]
[365097302,1749463851538,-500.0,0.00038619,51]
[365097303,1749463851549,-151.0,0.00038619,51]
[365097304,1749463851558,-151.0,0.00038619,51]
[365097305,1749463851567,-500.0,0.00038619,51]
[365097306,1749463851575,-151.0,0.00038619,51]
[365097307,1749463851584,-500.0,0.00038619,51]
[365097308,1749463851592,-500.0,0.00038619,51]
[365097309,1749463851601,-300.0,0.00038619,51]
[365097310,1749463851610,-218.0,0.0003862,51]
[365097311,1749463851619,-150.0,0.0003869,7]
[365097312,1749463851628,-1400.0,0.000387,14]
[365097313,1749463851636,-2000.0,0.00038795,3]
[365097314,1749463851644,-1400.0,0.000388,14]
[365097315,1749463851653,-500.0,0.00038887,30]
[365097316,1749463851664,-151.0,0.00038887,30]
[365097317,1749463851674,-151.0,0.00038887,30]
[365097318,1749463851683,-500.0,0.00038887,30]
[365097319,1749463851692,-151.0,0.00038887,30]
[365097320,1749463851701,-500.0,0.00038887,30]
[365097321,1749463851711,-500.0,0.00038887,30]
[365097322,1749463851721,-300.0,0.00038887,30]
[365097323,1749463851730,-3922.7904,0.00038888,30]
[365097324,1749463851739,-1969.38719934,0.0003889,2]
[365097325,1749463851748,-1299.55567827,0.0003889,2]
[365097326,1749463851758,-1152.32391954,0.0003889,120]
[365097327,1749463851767,-1000.0,0.00038899,2]
[365097328,1749463851776,-2000.0,0.00038899,2]
[365097329,1749463851786,-1000.0,0.000389,7]
[365097330,1749463851795,-243.3,0.000389,13]
[365097331,1749463851805,-159.0,0.000389,39]
[365097332,1749463851814,-1800.0,0.000389,14]
[365097333,1749463851823,-7000.0,0.00038933,2]
[365097334,1749463851832,-7000.0,0.00038933,2]
[365097335,1749463851841,-7000.0,0.00038933,2]
[365097336,1749463851850,-7000.0,0.00038933,2]
[365097337,1749463851859,-7000.0,0.00038933,2]
[365097338,1749463851867,-150.0,0.00038933,2]
[365097339,1749463851877,-1888.0,0.00038973,31]
[365097340,1749463851886,-151.65091393,0.00038973,31]
[365097341,1749463851895,-500.0,0.00038973,31]
[365097342,1749463851903,-151.0,0.00038973,31]
[365097343,1749463851912,-151.0,0.00038973,31]
[365097344,1749463851921,-500.0,0.00038973,31]
[365097345,1749463851930,-518.5,0.00038973,31]
[365097346,1749463851939,-537.6845,0.00038973,31]
[365097347,1749463851947,-151.0,0.00038973,31]
[365097348,1749463851956,-500.0,0.00038973,31]
[365097349,1749463851965,-557.5788265,0.00038973,31]
[365097350,1749463851974,-578.20924308,0.00038973,31]
[365097351,1749463851983,-599.60298507,0.00038973,31]
[365097352,1749463851992,-621.78829552,0.00038973,31]
[365097353,1749463852001,-644.79446245,0.00038973,31]
[365097354,1749463852010,-500.0,0.00038973,31]
[365097355,1749463852019,-151.45870763,0.00038973,31]
[365097356,1749463852028,-500.0,0.00038973,31]
[365097357,1749463852037,-200.0,0.00038973,31]
[365097358,1749463852047,-300.0,0.00038973,31]
[365097359,1749463852057,-55881.3394059,0.00038973,2]
[365097360,1749463852066,-46207.3096696,0.00038973,2]
[365097361,1749463852076,-36533.2799332,0.00038973,2]
[365097362,1749463852085,-26859.2501968,0.00038973,2]
[365097363,1749463852095,-17185.2204605,0.00038973,2]
[365097364,1749463852104,-4804.2407624,0.00038973,2]
[365097365,1749463852114,-3972.5433032,0.00038973,2]
[365097366,1749463852123,-3140.8458441,0.00038973,2]
[365097367,1749463852132,-2309.148385,0.00038973,2]
[365097368,1749463852142,-1477.4509259,0.00038973,2]
[365097369,1749463852151,-1650.0038407,0.00038973,2]
[365097370,1749463852160,-1364.3595381,0.00038973,2]
[365097371,1749463852169,-1078.7152356,0.00038973,2]
[365097372,1749463852178,-793.070933,0.00038973,2]
[365097373,1749463852187,-507.4266305,0.00038973,2]
[365097374,1749463852196,-65555.3691423,0.00038983,2]
[365097375,1749463852206,-5635.9382215,0.00038983,2]
[365097376,1749463852215,-1935.6481433,0.00038983,2]
[365097377,1749463852224,-151.0,0.00038989,16]
[365097378,1749463852233,-156.587,0.00038989,16]
[365097379,1749463852242,-162.380719,0.00038989,16]
[365097380,1749463852251,-168.3888056,0.00038989,16]
[365097381,1749463852260,-1000.0,0.00038989,16]
[365097382,1749463852269,-174.61919141,0.00038989,16]
[365097383,1749463852278,-789.48595656,0.00038989,16]
[365097384,1749463852291,-181.08010149,0.00038989,16]
[365097385,1749463852302,-187.78006525,0.00038989,16]
[365097386,1749463852312,-194.72792766,0.00038989,16]
[365097387,1749463852321,-533.07447737,0.00038989,16]
[365097388,1749463852332,-201.93286099,0.00038989,16]
[365097389,1749463852341,-209.40437684,0.00038989,16]
[365097390,1749463852351,-217.15233878,0.00038989,16]
[365097391,1749463852361,-225.18697532,0.00038989,16]
[365097392,1749463852371,-233.51889341,0.00038989,16]
[365097393,1749463852380,-242.15909246,0.00038989,16]
[365097394,1749463852390,-251.11897888,0.00038989,16]
[365097395,1749463852399,-260.4103811,0.00038989,16]
[365097396,1749463852408,-270.0455652,0.00038989,16]
[365097397,1749463852418,-151.0,0.00038989,16]
[365097398,1749463852427,-280.03725112,0.00038989,16]
[365097399,1749463852437,-156.587,0.00038989,16]
[365097400,1749463852447,-290.39862941,0.00038989,16]
[365097401,1749463852457,-301.1433787,0.00038989,16]
[365097402,1749463852466,-207.4,0.00038989,16]
[365097403,1749463852475,-215.0738,0.00038989,16]
[365097404,1749463852485,-223.0315306,0.00038989,16]
[365097405,1749463852495,-231.28369723,0.00038989,16]
[365097406,1749463852504,-239.84119403,0.00038989,16]
[365097407,1749463852513,-248.71531821,0.00038989,16]
[365097408,1749463852522,-257.91778498,0.00038989,16]
[365097409,1749463852532,-267.46074303,0.00038989,16]
[365097410,1749463852541,-277.35679052,0.00038989,16]
[365097411,1749463852551,-287.61899177,0.00038989,16]
[365097412,1749463852560,-298.26089446,0.00038989,16]
[365097413,1749463852570,-309.29654756,0.00038989,16]
[365097414,1749463852579,-320.74051982,0.00038989,16]
[365097415,1749463852588,-332.60791905,0.00038989,16]
[365097416,1749463852597,-344.91441206,0.00038989,16]
[365097417,1749463852606,-357.6762453,0.00038989,16]
[365097418,1749463852617,-370.91026638,0.00038989,16]
[365097419,1749463852627,-384.63394623,0.00038989,16]
[365097420,1749463852636,-398.86540225,0.00038989,16]
[365097421,1749463852646,-4158.82572746,0.0003899,7]
[365097422,1749463852655,-2795164.49753599,0.0003899,16]
[365097423,1749463852809,-798.93,0.00024053,2]
[365097424,1749463852818,-17700.638,0.0003899,16]
[365097425,1749463852830,-23080.085874,0.0003899,16]
[365097426,1749463852840,-5080.28031572,0.0003899,16]
[365097427,1749463852851,-53360.00000003,0.0003899,16]
[365097428,1749463852863,-1359.72724767,0.0003899,16]
[365097429,1749463853336,-480.0,0.00021917,2]
[365097430,1749463853346,-480.0,0.00022082,2]
[365097431,1749463853355,-480.0,0.00022246,2]
[365097432,1749463853364,-798.93,0.00024053,2]
[365097433,1749463853373,-798.93,0.00024053,2]
[365097434,1749463853383,-798.93,0.00024053,2]
[365097435,1749463853392,-798.93,0.00024053,2]
[365097436,1749463853401,-798.93,0.00024053,2]
[365097437,1749463853411,-1419.66050731,0.00030047,2]
[365097438,1749463853420,-253.7260715,0.0003214,2]
[365097439,1749463853429,-3092.20279222,0.0003899,16]
[365097440,1749463853495,-480.0,0.0002241,2]
[365097441,1749463853504,-203.9795395,0.00022575,2]
[365097442,1749463863481,158.75546221,0.0001712,120]
[365097443,1749463863511,355.08951344,0.0001712,120]
[365097444,1749464029033,170.21,0.00014982,2]
[365097446,1749464144353,-240.0972819,0.00017113,2]
[365097447,1749464147199,-169.28061633,0.00017113,2]
[365097448,1749464150468,-233.50151065,0.00017113,2]
[365097449,1749464153107,-163.91228329,0.00017113,2]
[365097450,1749464157233,-193.03558973,0.00017113,2]
[365097451,1749464159891,-228.25558614,0.00017113,2]
[365097452,1749464162460,-192.31822031,0.00017113,2]
[365097453,1749464163928,-329.53856191,0.00017113,2]
[365097454,1749464167014,-182.51847974,0.00017113,2]
[365097455,1749464169456,-257.39809172,0.00017113,2]
[365097456,1749464171613,-187.22664632,0.00017113,2]
[365097457,1749464173315,-151.0,0.00017113,2]
[365097458,1749464173813,716.09,0.00015997,2]
[365097459,1749464175572,-373.58,0.00017113,2]
[365097460,1749464178350,-270.7548247,0.00017113,2]
[365097461,1749464180691,-198.3463893,0.00017113,2]
[365097464,1749464184747,-158.48703992,0.00017113,2]
[365097465,1749464188132,-315.90445408,0.00017113,2]
[365097466,1749464189718,-270.84442396,0.00017113,2]
[365097467,1749464189741,-146.82531781,0.00017113,2]
[365097468,1749464192160,-4.17468219,0.00017113,2]
[365097472,1749464710485,14500.55623905,0.000154,2]
[365097473,1749464720249,1788.67314569,9e-05,2]
[365097475,1749464764073,3000.7860498,8e-05,2]
[365097480,1749464879224,1503.9027699,0.00015,2]
[365097481,1749464922330,2878.549999,0.000151,2]
[365097482,1749464922479,260.77937987,0.000107,2]
[365097483,1749464924569,1278.59316606,0.00015,120]
[365097484,1749464925483,460.09295095,0.0001,120]
[365097485,1749464927089,9283.80107596,0.00013368,2]
[365097487,1749464943787,1214.94137401,0.0001712,120]
[365097508,1749465019581,307.99,0.00013699,2]
[365097511,1749465032099,-150.0,0.00017441,2]
[365097512,1749465032110,-366.288,0.00017683,2]
[365097513,1749465032153,-833.712,0.00017683,2]
[365097514,1749465032163,-60.25771383,0.00017683,2]
[365097515,1749465032175,-239.74228617,0.00017683,2]
[365097516,1749465032185,-15.7435299,0.00017683,2]
[365097521,1749465037482,-234.2564701,0.00017683,2]
[365097522,1749465037494,-300.0,0.00017683,2]
[365097523,1749465037506,-4655.87424983,0.00017684,2]
[365097524,1749465037596,-19244.12575017,0.00017684,2]
[365097525,1749465037607,-250.0,0.00017767,2]
[365097526,1749465037617,-200.0,0.00017822,2]
[365097527,1749465037627,-300.0,0.00017823,2]
[365097528,1749465037637,-200.0,0.00017824,2]
[365097529,1749465037648,-300.0,0.00017845,2]
[365097531,1749465037658,-1000.0,0.00017848,2]
[365097534,1749465037667,-323.63,0.00017848,2]
[365097535,1749465037678,-170.25,0.00017861,2]
[365097536,1749465037688,-640.0,0.00017926,2]
[365097537,1749465037698,-167.68482798,0.00017938,2]
[365097539,1749465037708,-425.74903254,0.00017999,2]
[365097540,1749465037718,-500.0,0.00017999,2]
[365097542,1749465037727,-257.34991758,0.00017999,2]
[365097544,1749465037738,-247.70416651,0.00017999,2]
[365097546,1749465037748,-500.0,0.00017999,2]
[365097548,1749465037761,-482.06938789,0.00017999,2]
[365097549,1749465037771,-389.68239305,0.00017999,2]
[365097550,1749465037781,-151.94,0.00018,2]
[365097551,1749465037791,-6539.99367332,0.00018,2]
[365097552,1749465037985,-645.36,0.00018,2]
[365097553,1749465038041,-421.13683,0.00018,2]
[365097554,1749465038053,-1075.6,0.00018,2]
[365097555,1749465038065,-1333.79591887,0.00018,2]
[365097556,1749465038074,-261273.89478958,0.00018,2]
[365097557,1749465038084,-21187.93038448,0.00018,2]
[365097558,1749465038094,-300.0,0.00018149,2]
[365097559,1749465038104,-304.65,0.0001815,2]
[365097560,1749465038113,-305.62,0.0001815,2]
[365097561,1749465038125,-305.87,0.0001815,2]
[365097562,1749465038135,-302.81,0.0001815,2]
[365097563,1749465038146,-302.48,0.0001815,2]
[365097564,1749465038155,-304.27,0.0001815,2]
[365097565,1749465038165,-2572.99961663,0.00018259,2]
[365097566,1749465038175,-716.09,0.00018261,2]
[365097567,1749465038184,-215.0,0.00018405,2]
[365097568,1749465038193,-1132.0,0.00018496,2]
[365097569,1749465038205,-525.0,0.00018588,2]
[365097570,1749465038216,-1253.0,0.00018679,2]
[365097571,1749465038226,-347.34751163,0.00018759,2]
[365097572,1749465038236,-490.0,0.00018771,2]
[365097573,1749465038246,-251.3805733,0.000188,120]
[365097574,1749465038255,-300.0,0.000188,6]
[365097575,1749465038265,-244.0,0.00018862,2]
[365097576,1749465038275,-2500.0,0.00018865,2]
[365097577,1749465038284,-700.0,0.000189,6]
[365097578,1749465038294,-2500.0,0.00018902,2]
[365097579,1749465038303,-968.26464221,0.00018906,2]
[365097580,1749465038314,-2423.70582955,0.00019,2]
[365097581,1749465038323,-250.0,0.00019,2]
[365097582,1749465038333,-500.0,0.00019,6]
[365097583,1749465038342,-23255.40893872,0.00019077,2]
[365097584,1749465038351,-856.2995,0.00019078,2]
[365097585,1749465038361,-271.8718,0.00019078,2]
[365097586,1749465038370,-1000.0,0.000191,6]
[365097587,1749465038380,-163.64,0.000191,2]
[365097588,1749465038389,-3803.93556855,0.00019177,2]
[365097589,1749465038399,-253.682,0.00019177,2]
[365097590,1749465038408,-754.49853766,0.00019178,2]
[365097591,1749465038417,-754.49853766,0.00019178,2]
[365097592,1749465038427,-754.49853766,0.00019178,2]
[365097593,1749465038436,-754.49853766,0.00019178,2]
[365097594,1749465038446,-754.49853766,0.00019178,2]
[365097595,1749465038456,-754.49853766,0.00019178,2]
[365097596,1749465038465,-754.49853766,0.00019178,2]
[365097597,1749465038475,-754.49853766,0.00019178,2]
[365097598,1749465038485,-754.49853766,0.00019178,2]
[365097599,1749465038495,-754.49853766,0.00019178,2]
[365097600,1749465038505,-754.49853766,0.00019178,2]
[365097601,1749465038514,-754.49853766,0.00019178,2]
[365097602,1749465038523,-754.49853766,0.00019178,2]
[365097604,1749465038533,-754.49853766,0.00019178,2]
[365097605,1749465038542,-754.49853766,0.00019178,2]
[365097606,1749465038552,-754.49853766,0.00019178,2]
[365097607,1749465038561,-754.49853766,0.00019178,2]
[365097608,1749465038571,-754.49853766,0.00019178,2]
[365097609,1749465038580,-754.49853766,0.00019178,2]
[365097611,1749465038590,-754.49853766,0.00019178,2]
[365097613,1749465038601,-754.49853766,0.00019178,2]
[365097615,1749465038610,-754.49853766,0.00019178,2]
[365097617,1749465038621,-754.49853766,0.00019178,2]
[365097619,1749465038630,-754.49853766,0.00019178,2]
[365097621,1749465038639,-754.49853766,0.00019178,2]
[365097623,1749465038649,-754.49853766,0.00019178,2]
[365097625,1749465038658,-754.49853766,0.00019178,2]
[365097627,1749465038667,-754.49853766,0.00019178,2]
[365097629,1749465038677,-754.49853766,0.00019178,2]
[365097631,1749465038687,-754.49853766,0.00019178,2]
[365097633,1749465038696,-754.49853766,0.00019178,2]
[365097635,1749465038705,-754.49853766,0.00019178,2]
[365097637,1749465038715,-754.49853766,0.00019178,2]
[365097639,1749465038725,-754.49853766,0.00019178,2]
[365097641,1749465038734,-754.49853766,0.00019178,2]
[365097643,1749465038744,-754.49853766,0.00019178,2]
[365097645,1749465038754,-754.49853766,0.00019178,2]
[365097647,1749465038763,-754.49853766,0.00019178,2]
[365097649,1749465038773,-754.49853766,0.00019178,2]
[365097651,1749465038783,-754.49853766,0.00019178,2]
[365097653,1749465038792,-754.49853766,0.00019178,2]
[365097655,1749465038802,-754.49853766,0.00019178,2]
[365097657,1749465038811,-754.49853766,0.00019178,2]
[365097659,1749465038821,-754.49853766,0.00019178,2]
[365097661,1749465038830,-754.49853766,0.00019178,2]
[365097663,1749465038839,-754.49853766,0.00019178,2]
[365097665,1749465038849,-754.49853766,0.00019178,2]
[365097667,1749465038858,-754.49853766,0.00019178,2]
[365097669,1749465038867,-754.49853766,0.00019178,2]
[365097671,1749465038877,-754.49853766,0.00019178,2]
[365097673,1749465038887,-754.49853766,0.00019178,2]
[365097675,1749465038897,-754.49853766,0.00019178,2]
[365097677,1749465038907,-754.49853766,0.00019178,2]
[365097679,1749465038917,-754.49853766,0.00019178,2]
[365097681,1749465038926,-754.49853766,0.00019178,2]
[365097683,1749465038935,-754.49853766,0.00019178,2]
[365097685,1749465038946,-754.49853766,0.00019178,2]
[365097687,1749465038955,-754.49853766,0.00019178,2]
[365097689,1749465038963,-754.49853766,0.00019178,2]
[365097690,1749465038972,-754.49853766,0.00019178,2]
[365097692,1749465038981,-754.49853766,0.00019178,2]
[365097694,1749465038990,-754.49853766,0.00019178,2]
[365097696,1749465038999,-500.0,0.00019178,2]
[365097698,1749465039010,-500.0,0.00019178,2]
[365097700,1749465039020,-158.57328339,0.00019178,2]
[365097702,1749465039029,-500.0,0.00019178,2]
[365097704,1749465039038,-5011.63758395,0.00019178,2]
[365097706,1749465039047,-5011.63758395,0.00019178,2]
[365097708,1749465039056,-5011.63758395,0.00019178,2]
[365097710,1749465039066,-5011.63758395,0.00019178,2]
[365097712,1749465039075,-5011.63758395,0.00019178,2]
[365097731,1749465039251,-5011.63758395,0.00019178,2]
[365097733,1749465039262,-5011.63758395,0.00019178,2]
[365097735,1749465039272,-5011.63758395,0.00019178,2]
[365097737,1749465039281,-5011.63758395,0.00019178,2]
[365097739,1749465039291,-5011.63758395,0.00019178,2]
[365097741,1749465039299,-5011.63758395,0.00019178,2]
[365097743,1749465039308,-5011.63758395,0.00019178,2]
[365097745,1749465039317,-5011.63758395,0.00019178,2]
[365097747,1749465039327,-5011.63758395,0.00019178,2]
[365097749,1749465039337,-5011.63758395,0.00019178,2]
[365097751,1749465039346,-5011.63758395,0.00019178,2]
[365097752,1749465039356,-5011.63758395,0.00019178,2]
[365097754,1749465039365,-5011.63758395,0.00019178,2]
[365097756,1749465039374,-5011.63758395,0.00019178,2]
[365097758,1749465039383,-5011.63758395,0.00019178,2]
[365097760,1749465039392,-5011.63758395,0.00019178,2]
[365097762,1749465039401,-5011.63758395,0.00019178,2]
[365097764,1749465039410,-5011.63758395,0.00019178,2]
[365097766,1749465039419,-5011.63758395,0.00019178,2]
[365097768,1749465039428,-5011.63758395,0.00019178,2]
[365097770,1749465039438,-5011.63758395,0.00019178,2]
[365097772,1749465039447,-5011.63758389,0.00019178,2]
[365097774,1749465039457,-199.57,0.00019178,2]
[365097776,1749465039467,-3286.23,0.00019178,2]
[365097779,1749465039477,-1500.0,0.00019178,2]
[365097781,1749465039487,-1500.0,0.000192,7]
[365097783,1749465039497,-1000.0,0.000192,7]
[365097785,1749465039506,-144949.35842393,0.00019242,2]
[365097787,1749465039515,-2000.0,0.000193,7]
[365097789,1749465039524,-1400.0,0.000193,7]
[365097791,1749465039534,-420.0,0.000193,2]
[365097792,1749465039543,-151.94,0.00019366,2]
[365097795,1749465039552,-150.27,0.0001939,2]
[365097797,1749465039562,-150.27,0.0001939,2]
[365097799,1749465039572,-150.27,0.0001939,2]
[365097800,1749465039581,-150.27,0.0001939,2]
[365097802,1749465039590,-150.27,0.0001939,2]
[365097804,1749465039599,-2500.0,0.000194,7]
[365097806,1749465039609,-489998.63831327,0.000194,2]
[365097842,1749465039927,-53574.99999998,0.000194,2]
[365097847,1749465039959,-515.65476,0.000194,2]
[365097850,1749465039970,-1348.52228421,0.000194,2]
[365097861,1749465040045,-266638.82095317,0.000194,2]
[365097863,1749465040056,-1700.0,0.000194,7]
[365097866,1749465040065,-250.0,0.00019451,2]
[365097868,1749465040074,-300.0,0.00019451,2]
[365097871,1749465040083,-500.0,0.000195,7]
[365097874,1749465040093,-300.0,0.000195,7]
[365097876,1749465040102,-500.0,0.000196,7]
[365097879,1749465040111,-300.0,0.000196,7]
[365097880,1749465040124,-300.0,0.00019604,2]
[365097882,1749465040138,-150.27,0.0001969,2]
[365097884,1749465040148,-500.0,0.000197,7]
[365097885,1749465040157,-300.0,0.000197,7]
[365097886,1749465040166,-15479.01601315,0.000197,2]
[365097887,1749465040176,-500.0,0.000198,7]
[365097888,1749465040184,-300.0,0.000198,7]
[365097889,1749465040193,-150.27,0.0001989,2]
[365097890,1749465040204,-150.27,0.0001989,2]
[365097891,1749465040213,-159219.67128418,0.000199,2]
[365097892,1749465040222,-879.5327361,0.000199,3]
[365097893,1749465040231,-113605.44098011,0.000199,2]
[365097895,1749465040240,-800.0,0.000199,7]
[365097897,1749465040249,-800.0,0.000199,7]
[365097899,1749465040259,-261.39368438,0.000199,3]
[365097901,1749465040268,-268.39782792,0.000199,2]
[365097903,1749465040277,-4258.98152193,0.00019979,2]
[365097905,1749465040287,-41808.29948375,0.00019985,2]
[365097907,1749465040296,-150.27,0.0001999,2]
[365097909,1749465040305,-150.27,0.0001999,2]
[365097911,1749465040314,-150.27,0.0001999,2]
[365097913,1749465040324,-150.27,0.0001999,2]
[365097915,1749465040333,-150.27,0.0001999,2]
[365097917,1749465040342,-150.27,0.0001999,2]
[365097919,1749465040351,-150.27,0.0001999,2]
[365097920,1749465040360,-150.27,0.0001999,2]
[365097922,1749465040369,-150.27,0.0001999,2]
[365097925,1749465040378,-150.27,0.0001999,2]
[365097927,1749465040388,-150.27,0.0001999,2]
[365097928,1749465040397,-150.27,0.0001999,2]
[365097930,1749465040406,-150.27,0.0001999,2]
[365097932,1749465040415,-150.27,0.0001999,2]
[365097934,1749465040424,-150.27,0.0001999,2]
[365097936,1749465040434,-150.27,0.0001999,2]
[365097939,1749465040444,-150.27,0.0001999,2]
[365097940,1749465040453,-150.27,0.0001999,2]
[365097942,1749465040463,-150.27,0.0001999,2]
[365097944,1749465040472,-150.27,0.0001999,2]
[365097946,1749465040481,-150.27,0.0001999,2]
[365097948,1749465040491,-150.27,0.0001999,2]
[365097951,1749465040501,-150.27,0.0001999,2]
[365097952,1749465040511,-150.27,0.0001999,2]
[365097954,1749465040519,-150.27,0.0001999,2]
[365097956,1749465040529,-150.27,0.0001999,2]
[365097959,1749465040539,-150.27,0.0001999,2]
[365097960,1749465040548,-150.27,0.0001999,2]
[365097962,1749465040557,-150.27,0.0001999,2]
[365097964,1749465040566,-150.27,0.0001999,2]
[365097966,1749465040575,-150.27,0.0001999,2]
[365097968,1749465040585,-150.27,0.0001999,2]
[365097970,1749465040593,-150.27,0.0001999,2]
[365097972,1749465040602,-150.27,0.0001999,2]